[Event "European Rapid Championship 2021"]
[Site "Katowice"]
[Date "2021.12.18"]
[Round "4.19"]
[White "Wiewiora, Eneasz"]
[Black "Starosta, Martyna"]
[Result "1-0"]
[ECO "C55"]
[WhiteElo "2333"]
[BlackElo "1851"]
[Annotator "NA"]
[PlyCount "49"]
[EventDate "2021.12.18"]
[EventType "swiss"]
[EventCountry "POL"]
[SourceTitle "playchess.com"]
[Source "ChessBase"]
[SourceQuality "1"]
[TimeControl "900+10"]

1. e4 {[%emt 0:00:02]} e5 {[%emt 0:00:01]} 2. Nf3 {[%emt 0:00:02]} Nc6 {
[%emt 0:00:01]} 3. Bc4 {[%emt 0:00:01]} Nf6 {[%emt 0:00:01]} 4. d3 {[%emt 0:00:
02]} Be7 {[%emt 0:00:01]} 5. O-O {[%emt 0:00:03]} O-O {[%emt 0:00:02]} 6. Re1 {
[%emt 0:00:01]} d6 {[%emt 0:00:03]} 7. a4 {[%emt 0:00:01]} Kh8 {[%emt 0:00:02]}
8. Nbd2 {[%emt 0:00:22]} Ng8 {[%emt 0:00:03]} 9. c3 {[%emt 0:06:33]} f5 {
[%emt 0:00:06]} 10. b4 {[%emt 0:00:05]} f4 {[%emt 0:00:26]} 11. b5 {[%emt 0:00:
03]} Nb8 {[%emt 0:00:03]} 12. d4 {[%emt 0:00:03]} Nd7 {[%emt 0:00:01]} 13. Ba2
{[%emt 0:01:18]} g5 {[%emt 0:00:16]} 14. dxe5 {[%emt 0:00:21]} dxe5 {[%emt 0:
00:38]} 15. Nc4 {[%emt 0:00:17]} Bf6 {[%emt 0:00:25]} 16. Ba3 {[%emt 0:01:04]}
Re8 {[%emt 0:00:04]} 17. h3 {[%emt 0:00:27]} Ne7 {[%emt 0:01:09]} 18. Nfxe5 {
[%emt 0:01:52]} Nxe5 {[%emt 0:01:00]} 19. Qxd8 {[%emt 0:00:27]} Rxd8 {[%emt 0:
00:01]} 20. Nxe5 {[%emt 0:00:43]} Kg7 {[%emt 0:00:48]} 21. Nf7 {[%emt 0:00:18]}
Bxc3 {[%emt 0:01:35]} 22. Nxd8 {[%emt 0:00:16]} Bxa1 {[%emt 0:00:07]} 23. Rxa1
{[%emt 0:00:07]} Ng6 {[%emt 0:00:19]} 24. Rc1 {[%emt 0:00:07]} Bd7 {[%emt 0:00:
31]} 25. Nxb7 {[%emt 0:00:16]} 1-0

[Event "European Rapid Championship 2021"]
[Site "Katowice"]
[Date "2021.12.18"]
[Round "4.20"]
[White "Bjerre, Jonas Buhl"]
[Black "Panek, Bartosz"]
[Result "1-0"]
[ECO "D85"]
[WhiteElo "2330"]
[BlackElo "1838"]
[Annotator "NA"]
[PlyCount "71"]
[EventDate "2021.12.18"]
[EventType "swiss"]
[EventCountry "POL"]
[SourceTitle "playchess.com"]
[Source "ChessBase"]
[SourceQuality "1"]
[TimeControl "900+10"]

1. d4 {[%emt 0:00:02]} Nf6 {[%emt 0:00:03]} 2. c4 {[%emt 0:00:02]} g6 {[%emt 0:
00:01]} 3. Nc3 {[%emt 0:00:02]} d5 {[%emt 0:00:01]} 4. cxd5 {[%emt 0:00:15]}
Nxd5 {[%emt 0:00:03]} 5. Nf3 {[%emt 0:00:04]} Bg7 {[%emt 0:00:03]} 6. e4 {
[%emt 0:00:13]} Nxc3 {[%emt 0:00:02]} 7. bxc3 {[%emt 0:00:01]} c5 {[%emt 0:00:
03]} 8. Be3 {[%emt 0:00:01]} cxd4 {[%emt 0:00:05]} 9. cxd4 {[%emt 0:00:02]}
Qa5+ {[%emt 0:00:02]} 10. Bd2 {[%emt 0:00:18]} Qd8 {[%emt 0:00:07]} 11. Rc1 {
[%emt 0:00:11]} Nc6 {[%emt 0:01:40]} 12. d5 {[%emt 0:00:07]} Ne5 {[%emt 0:00:
08]} 13. Nxe5 {[%emt 0:00:24]} Bxe5 {[%emt 0:00:02]} 14. Bh6 {[%emt 0:01:31]}
Qa5+ {[%emt 0:03:02]} 15. Qd2 {[%emt 0:00:01]} Qxd2+ {[%emt 0:00:01]} 16. Kxd2
{[%emt 0:00:01]} Rg8 {[%emt 0:01:44]} 17. f4 {[%emt 0:00:17]} Bd4 {[%emt 0:00:
06]} 18. Bc4 {[%emt 0:00:38]} Bd7 {[%emt 0:01:12]} 19. Rb1 {[%emt 0:01:18]} Bb6
{[%emt 0:01:37]} 20. Rhc1 {[%emt 0:00:07]} Rd8 {[%emt 0:01:28]} 21. h3 {
[%emt 0:00:15]} f6 {[%emt 0:00:26]} 22. h4 {[%emt 0:01:24]} e6 {[%emt 0:01:55]}
23. d6 {[%emt 0:00:51]} Kf7 {[%emt 0:00:02]} 24. e5 {[%emt 0:00:16]} Bc6 {
[%emt 0:00:11]} 25. g4 {[%emt 0:00:34]} Rge8 {[%emt 0:00:18]} 26. Bb5 {[%emt 0:
00:16]} Rc8 {[%emt 0:00:28]} 27. Bxc6 {[%emt 0:00:17]} Rxc6 {[%emt 0:00:32]}
28. Rxc6 {[%emt 0:00:04]} bxc6 {[%emt 0:00:01]} 29. a4 {[%emt 0:00:01]} Rd8 {
[%emt 0:00:12]} 30. Kd3 {[%emt 0:00:05]} Rd7 {[%emt 0:00:51]} 31. Kc4 {[%emt 0:
00:08]} Ke8 {[%emt 0:02:50]} 32. a5 {[%emt 0:00:10]} Bxa5 {[%emt 0:00:06]} 33.
Kc5 {[%emt 0:00:03]} Bb6+ {[%emt 0:00:57]} 34. Kxc6 {[%emt 0:00:01]} Rf7 {
[%emt 0:00:07]} 35. f5 {[%emt 0:00:12]} gxf5 {[%emt 0:00:18]} 36. gxf5 {
[%emt 0:00:01]} 1-0

[Event "European Rapid Championship 2021"]
[Site "Katowice"]
[Date "2021.12.18"]
[Round "4.20"]
[White "Koziorowicz, Michal"]
[Black "Diermair, Andreas"]
[Result "1-0"]
[ECO "C04"]
[WhiteElo "2041"]
[BlackElo "2408"]
[Annotator "NA"]
[PlyCount "99"]
[EventDate "2021.12.18"]
[EventType "swiss"]
[EventCountry "POL"]
[SourceTitle "playchess.com"]
[Source "ChessBase"]
[SourceQuality "1"]
[TimeControl "900+10"]

1. e4 {[%emt 0:00:01]} e6 {[%emt 0:00:05]} 2. d4 {[%emt 0:00:03]} d5 {[%emt 0:
00:01]} 3. Nd2 {[%emt 0:00:01]} Nc6 {[%emt 0:00:23]} 4. Ngf3 {[%emt 0:00:08]}
Nf6 {[%emt 0:00:02]} 5. e5 {[%emt 0:00:02]} Nd7 {[%emt 0:00:01]} 6. Bd3 {
[%emt 0:00:03]} Nb4 {[%emt 0:00:35]} 7. Be2 {[%emt 0:00:10]} c5 {[%emt 0:00:01]
} 8. c3 {[%emt 0:00:02]} Nc6 {[%emt 0:00:02]} 9. O-O {[%emt 0:00:09]} g6 {
[%emt 0:00:05]} 10. b3 {[%emt 0:01:11]} Bg7 {[%emt 0:00:50]} 11. a4 {[%emt 0:
00:48]} O-O {[%emt 0:00:33]} 12. Ba3 {[%emt 0:00:13]} b6 {[%emt 0:00:08]} 13.
b4 {[%emt 0:00:13]} c4 {[%emt 0:00:49]} 14. Ne1 {[%emt 0:00:46]} f6 {[%emt 0:
01:38]} 15. f4 {[%emt 0:00:38]} fxe5 {[%emt 0:00:49]} 16. fxe5 {[%emt 0:00:02]}
Qg5 {[%emt 0:00:46]} 17. Rxf8+ {[%emt 0:00:59]} Nxf8 {[%emt 0:00:41]} 18. Nf1 {
[%emt 0:00:09]} Nxe5 {[%emt 0:02:05]} 19. dxe5 {[%emt 0:00:06]} Qxe5 {[%emt 0:
00:01]} 20. Bb2 {[%emt 0:00:37]} Bd7 {[%emt 0:00:13]} 21. Nf3 {[%emt 0:00:55]}
Qf6 {[%emt 0:00:23]} 22. Qd2 {[%emt 0:00:36]} Rd8 {[%emt 0:00:28]} 23. Ng3 {
[%emt 0:00:40]} Be8 {[%emt 0:01:06]} 24. a5 {[%emt 0:01:53]} b5 {[%emt 0:00:04]
} 25. Rd1 {[%emt 0:00:10]} e5 {[%emt 0:01:02]} 26. Ne4 {[%emt 0:00:16]} Qe7 {
[%emt 0:00:49]} 27. Nc5 {[%emt 0:00:09]} Bc6 {[%emt 0:00:06]} 28. Re1 {[%emt 0:
00:59]} Qd6 {[%emt 0:00:38]} 29. Qg5 {[%emt 0:01:05]} h6 {[%emt 0:01:15]} 30.
Qg3 {[%emt 0:00:20]} Qf6 {[%emt 0:00:50]} 31. Rf1 {[%emt 0:00:21]} Qe7 {
[%emt 0:00:10]} 32. Nh4 {[%emt 0:00:45]} Be8 {[%emt 0:00:10]} 33. Bc1 {[%emt 0:
01:18]} d4 {[%emt 0:00:13]} 34. Bf3 {[%emt 0:00:02]} d3 {[%emt 0:00:48]} 35.
Bd2 {[%emt 0:00:06]} Rd6 {[%emt 0:00:57]} 36. Be4 {[%emt 0:00:27]} Kh7 {
[%emt 0:00:35]} 37. Nf3 {[%emt 0:00:45]} Kg8 {[%emt 0:00:08]} 38. h4 {[%emt 0:
00:19]} Bc6 {[%emt 0:00:11]} 39. h5 {[%emt 0:00:17]} g5 {[%emt 0:00:19]} 40.
Bxc6 {[%emt 0:00:45]} Rxc6 {[%emt 0:00:02]} 41. Nxg5 {[%emt 0:00:02]} hxg5 {
[%emt 0:01:01]} 42. Bxg5 {[%emt 0:00:01]} Qe8 {[%emt 0:00:14]} 43. h6 {[%emt 0:
00:08]} Rg6 {[%emt 0:00:15]} 44. hxg7 {[%emt 0:00:04]} Rxg7 {[%emt 0:00:01]}
45. Ne4 {[%emt 0:00:20]} Qg6 {[%emt 0:00:11]} 46. Nf6+ {[%emt 0:00:43]} Kh8 {
[%emt 0:00:02]} 47. Qh3+ {[%emt 0:00:05]} Nh7 {[%emt 0:00:07]} 48. Qc8+ {
[%emt 0:00:01]} Rg8 {[%emt 0:00:04]} 49. Nxg8 {[%emt 0:00:22]} Qxg5 {[%emt 0:
00:14]} 50. Nf6+ {[%emt 0:00:07]} 1-0

[Event "European Rapid Championship 2021"]
[Site "Katowice"]
[Date "2021.12.18"]
[Round "4.21"]
[White "Wieczorek, Oskar"]
[Black "Jonsson, Gauti Pall"]
[Result "1-0"]
[ECO "B01"]
[WhiteElo "2367"]
[BlackElo "2014"]
[Annotator "NA"]
[PlyCount "53"]
[EventDate "2021.12.18"]
[EventType "swiss"]
[EventCountry "POL"]
[SourceTitle "playchess.com"]
[Source "ChessBase"]
[SourceQuality "1"]
[TimeControl "900+10"]

1. e4 {[%emt 0:00:46]} d5 {[%emt 0:00:35]} 2. exd5 {[%emt 0:00:02]} Qxd5 {
[%emt 0:00:02]} 3. Nc3 {[%emt 0:00:01]} Qd8 {[%emt 0:00:06]} 4. d4 {[%emt 0:00:
05]} Nf6 {[%emt 0:00:04]} 5. Bc4 {[%emt 0:00:14]} a6 {[%emt 0:00:13]} 6. a4 {
[%emt 0:00:04]} Nc6 {[%emt 0:00:27]} 7. Nf3 {[%emt 0:01:48]} Bf5 {[%emt 0:01:
08]} 8. d5 {[%emt 0:02:10]} Nb4 {[%emt 0:00:24]} 9. Nd4 {[%emt 0:00:01]} Bg4 {
[%emt 0:02:05]} 10. f3 {[%emt 0:00:16]} e5 {[%emt 0:01:21]} 11. dxe6 {[%emt 0:
02:28]} Bxe6 {[%emt 0:02:39]} 12. Nxe6 {[%emt 0:01:51]} fxe6 {[%emt 0:00:16]}
13. Qe2 {[%emt 0:00:57]} Be7 {[%emt 0:01:25]} 14. Bxe6 {[%emt 0:00:54]} Qd6 {
[%emt 0:00:06]} 15. Bb3 {[%emt 0:01:21]} O-O-O {[%emt 0:00:46]} 16. O-O {
[%emt 0:00:02]} Rhe8 {[%emt 0:00:35]} 17. Qe6+ {[%emt 0:02:04]} Qxe6 {[%emt 0:
00:02]} 18. Bxe6+ {[%emt 0:00:03]} Kb8 {[%emt 0:00:01]} 19. Bb3 {[%emt 0:00:10]
} Bc5+ {[%emt 0:00:38]} 20. Kh1 {[%emt 0:00:02]} Nh5 {[%emt 0:00:30]} 21. Bg5 {
[%emt 0:00:55]} Re5 {[%emt 0:00:00]} 22. Bxd8 {[%emt 0:00:43]} Ng3+ {[%emt 0:
00:07]} 23. hxg3 {[%emt 0:00:02]} Rh5+ {[%emt 0:00:02]} 24. Bh4 {[%emt 0:00:01]
} g5 {[%emt 0:00:01]} 25. Rae1 {[%emt 0:00:28]} gxh4 {[%emt 0:00:02]} 26. g4 {
[%emt 0:00:01]} Rh6 {[%emt 0:00:07]} 27. Re6 {[%emt 0:00:02]} 1-0

[Event "European Rapid Championship 2021"]
[Site "Katowice"]
[Date "2021.12.18"]
[Round "4.22"]
[White "Teclaf, Pawel"]
[Black "Karolczuk, Iwo"]
[Result "1-0"]
[ECO "A01"]
[WhiteElo "2345"]
[BlackElo "2007"]
[Annotator "NA"]
[PlyCount "127"]
[EventDate "2021.12.18"]
[EventType "swiss"]
[EventCountry "POL"]
[SourceTitle "playchess.com"]
[Source "ChessBase"]
[SourceQuality "1"]
[TimeControl "900+10"]

1. b3 {[%emt 0:00:08]} c5 {[%emt 0:00:08]} 2. Bb2 {[%emt 0:00:02]} Nc6 {
[%emt 0:00:02]} 3. Nf3 {[%emt 0:00:06]} d6 {[%emt 0:00:07]} 4. d4 {[%emt 0:00:
10]} cxd4 {[%emt 0:00:06]} 5. Nxd4 {[%emt 0:00:02]} e5 {[%emt 0:00:15]} 6. Nxc6
{[%emt 0:00:13]} bxc6 {[%emt 0:00:02]} 7. g3 {[%emt 0:00:02]} Nf6 {[%emt 0:00:
51]} 8. Bg2 {[%emt 0:00:02]} Qc7 {[%emt 0:00:05]} 9. c4 {[%emt 0:00:15]} Be7 {
[%emt 0:00:19]} 10. Nc3 {[%emt 0:00:08]} O-O {[%emt 0:01:03]} 11. O-O {[%emt 0:
00:02]} Rb8 {[%emt 0:00:10]} 12. Qd2 {[%emt 0:00:31]} Be6 {[%emt 0:01:08]} 13.
Rac1 {[%emt 0:00:07]} Qd7 {[%emt 0:01:16]} 14. Rfd1 {[%emt 0:00:27]} Rfd8 {
[%emt 0:00:17]} 15. Ne4 {[%emt 0:03:56]} Nxe4 {[%emt 0:01:39]} 16. Bxe4 {
[%emt 0:00:02]} f5 {[%emt 0:00:20]} 17. Bg2 {[%emt 0:00:04]} Bf6 {[%emt 0:00:
47]} 18. e3 {[%emt 0:01:36]} Rbc8 {[%emt 0:03:03]} 19. Qa5 {[%emt 0:00:11]} Qc7
{[%emt 0:00:36]} 20. Qa4 {[%emt 0:01:09]} h5 {[%emt 0:01:44]} 21. Rd2 {[%emt 0:
01:20]} h4 {[%emt 0:01:15]} 22. Bc3 {[%emt 0:00:37]} Rf8 {[%emt 0:00:52]} 23.
Qb4 {[%emt 0:01:06]} Be7 {[%emt 0:00:22]} 24. Qa5 {[%emt 0:00:09]} Qb8 {
[%emt 0:00:41]} 25. Rcd1 {[%emt 0:01:20]} e4 {[%emt 0:01:01]} 26. Bd4 {[%emt 0:
01:38]} c5 {[%emt 0:00:22]} 27. Bb2 {[%emt 0:00:12]} Rcd8 {[%emt 0:00:22]} 28.
Bc3 {[%emt 0:01:31]} Qb6 {[%emt 0:00:02]} 29. Qa3 {[%emt 0:00:07]} hxg3 {
[%emt 0:00:07]} 30. hxg3 {[%emt 0:00:06]} Qb8 {[%emt 0:00:17]} 31. Bf1 {
[%emt 0:00:15]} Kf7 {[%emt 0:00:24]} 32. b4 {[%emt 0:00:27]} Kg8 {[%emt 0:00:
22]} 33. bxc5 {[%emt 0:00:13]} dxc5 {[%emt 0:00:02]} 34. Rxd8 {[%emt 0:00:10]}
Rxd8 {[%emt 0:00:01]} 35. Rxd8+ {[%emt 0:00:01]} Qxd8 {[%emt 0:00:01]} 36. Qxa7
{[%emt 0:00:02]} Bf8 {[%emt 0:00:24]} 37. Be2 {[%emt 0:00:43]} Qe8 {[%emt 0:00:
28]} 38. Qb7 {[%emt 0:01:14]} Qg6 {[%emt 0:00:05]} 39. Be5 {[%emt 0:00:05]} Qe8
{[%emt 0:00:21]} 40. Qb3 {[%emt 0:00:33]} Bd7 {[%emt 0:00:08]} 41. Qb8 {
[%emt 0:00:11]} Qxb8 {[%emt 0:00:09]} 42. Bxb8 {[%emt 0:00:02]} Ba4 {[%emt 0:
00:04]} 43. Kf1 {[%emt 0:00:03]} Kf7 {[%emt 0:00:02]} 44. Ke1 {[%emt 0:00:12]}
Ke6 {[%emt 0:00:02]} 45. Bd1 {[%emt 0:00:15]} Bxd1 {[%emt 0:00:21]} 46. Kxd1 {
[%emt 0:00:01]} Kd7 {[%emt 0:00:03]} 47. Ke2 {[%emt 0:00:11]} g6 {[%emt 0:00:
24]} 48. f3 {[%emt 0:00:07]} Be7 {[%emt 0:00:03]} 49. g4 {[%emt 0:00:20]} Bd8 {
[%emt 0:00:21]} 50. gxf5 {[%emt 0:00:10]} exf3+ {[%emt 0:00:09]} 51. Kxf3 {
[%emt 0:00:03]} gxf5 {[%emt 0:00:01]} 52. a4 {[%emt 0:00:06]} Ba5 {[%emt 0:00:
05]} 53. Be5 {[%emt 0:00:05]} Bd2 {[%emt 0:00:17]} 54. Ke2 {[%emt 0:00:02]} Ba5
{[%emt 0:00:12]} 55. Bg7 {[%emt 0:00:13]} Kc6 {[%emt 0:00:14]} 56. Kf3 {
[%emt 0:00:10]} Bc7 {[%emt 0:00:07]} 57. Bc3 {[%emt 0:00:12]} Kb6 {[%emt 0:00:
05]} 58. Kg2 {[%emt 0:00:13]} Kc6 {[%emt 0:00:21]} 59. Kh3 {[%emt 0:00:08]} Kd6
{[%emt 0:00:07]} 60. Kh4 {[%emt 0:00:22]} Ke6 {[%emt 0:00:02]} 61. Kg5 {
[%emt 0:00:02]} Bd8+ {[%emt 0:00:02]} 62. Kg6 {[%emt 0:00:01]} Bc7 {[%emt 0:00:
02]} 63. a5 {[%emt 0:00:08]} f4 {[%emt 0:00:24]} 64. a6 {[%emt 0:00:01]} 1-0

[Event "European Rapid Championship 2021"]
[Site "Katowice"]
[Date "2021.12.18"]
[Round "4.22"]
[White "Koubova, Anna Marie"]
[Black "Skawinski, Arkadiusz"]
[Result "0-1"]
[ECO "D31"]
[WhiteElo "1837"]
[BlackElo "2367"]
[Annotator "NA"]
[PlyCount "70"]
[EventDate "2021.12.18"]
[EventType "swiss"]
[EventCountry "POL"]
[SourceTitle "playchess.com"]
[Source "ChessBase"]
[SourceQuality "1"]
[TimeControl "900+10"]

1. d4 {[%emt 0:00:03]} d5 {[%emt 0:04:09]} 2. c4 {[%emt 0:00:05]} e6 {[%emt 0:
00:02]} 3. Nc3 {[%emt 0:00:05]} c6 {[%emt 0:00:01]} 4. e4 {[%emt 0:01:31]} dxe4
{[%emt 0:00:01]} 5. Nxe4 {[%emt 0:00:05]} Bb4+ {[%emt 0:00:01]} 6. Nc3 {
[%emt 0:00:14]} c5 {[%emt 0:00:01]} 7. Be3 {[%emt 0:00:55]} Nf6 {[%emt 0:00:03]
} 8. a3 {[%emt 0:00:32]} Ba5 {[%emt 0:00:01]} 9. Nge2 {[%emt 0:02:56]} Nc6 {
[%emt 0:00:02]} 10. dxc5 {[%emt 0:00:20]} Qe7 {[%emt 0:00:37]} 11. b4 {[%emt 0:
00:29]} Bc7 {[%emt 0:00:01]} 12. Nd4 {[%emt 0:00:38]} O-O {[%emt 0:01:16]} 13.
Nxc6 {[%emt 0:02:33]} bxc6 {[%emt 0:00:01]} 14. Be2 {[%emt 0:00:07]} e5 {
[%emt 0:00:05]} 15. O-O {[%emt 0:00:29]} e4 {[%emt 0:00:01]} 16. Qc2 {[%emt 0:
00:39]} Re8 {[%emt 0:00:41]} 17. Bd4 {[%emt 0:00:37]} Bf5 {[%emt 0:00:13]} 18.
Qa4 {[%emt 0:01:00]} Rad8 {[%emt 0:00:06]} 19. Bxf6 {[%emt 0:02:18]} Qxf6 {
[%emt 0:00:02]} 20. Rac1 {[%emt 0:00:10]} Bf4 {[%emt 0:00:07]} 21. Qxa7 {
[%emt 0:01:08]} Bxc1 {[%emt 0:00:02]} 22. Rxc1 {[%emt 0:00:00]} Ra8 {[%emt 0:
00:07]} 23. Qc7 {[%emt 0:01:31]} Rxa3 {[%emt 0:00:03]} 24. Nd1 {[%emt 0:00:10]}
Ra2 {[%emt 0:00:02]} 25. Bf1 {[%emt 0:00:17]} h5 {[%emt 0:02:11]} 26. b5 {
[%emt 0:00:03]} Rc8 {[%emt 0:00:37]} 27. Qf4 {[%emt 0:00:25]} Bg6 {[%emt 0:00:
30]} 28. Qxf6 {[%emt 0:00:12]} gxf6 {[%emt 0:00:02]} 29. Ne3 {[%emt 0:00:12]}
f5 {[%emt 0:00:20]} 30. g3 {[%emt 0:00:01]} Kg7 {[%emt 0:00:03]} 31. Bh3 {
[%emt 0:00:13]} Kf6 {[%emt 0:00:04]} 32. b6 {[%emt 0:00:08]} Ra5 {[%emt 0:00:
09]} 33. Rd1 {[%emt 0:00:08]} Rxc5 {[%emt 0:00:05]} 34. Rd6+ {[%emt 0:00:11]}
Ke7 {[%emt 0:00:02]} 35. Rd4 {[%emt 0:00:08]} Rb8 {[%emt 0:00:01]} 0-1

[Event "European Rapid Championship 2021"]
[Site "Katowice"]
[Date "2021.12.18"]
[Round "4.23"]
[White "Szwed, Jacek"]
[Black "Smieja, Adam"]
[Result "1-0"]
[ECO "B30"]
[WhiteElo "2372"]
[BlackElo "1818"]
[Annotator "ChessBase"]
[PlyCount "141"]
[EventDate "2021.12.18"]
[EventType "swiss"]
[EventCountry "POL"]
[SourceTitle "playchess.com"]
[Source "ChessBase"]
[SourceQuality "1"]
[TimeControl "900+10"]

1. e4 {[%emt 0:00:02]} c5 {[%emt 0:00:05]} 2. Nf3 {[%emt 0:00:02]} Nc6 {
[%emt 0:00:03]} 3. Bb5 {[%emt 0:00:02]} a6 {[%emt 0:00:01]} 4. Bxc6 {[%emt 0:
00:05]} dxc6 {[%emt 0:00:01]} 5. h3 {[%emt 0:00:10]} Qc7 {[%emt 0:00:02]} 6.
O-O {[%emt 0:00:29]} e5 {[%emt 0:00:04]} 7. d3 {[%emt 0:00:16]} f6 {[%emt 0:00:
04]} 8. a4 {[%emt 0:00:15]} Bd6 {[%emt 0:00:29]} 9. Nbd2 {[%emt 0:00:23]} Ne7 {
[%emt 0:00:04]} 10. Nc4 {[%emt 0:00:21]} g5 {[%emt 0:00:04]} 11. Nxd6+ {
[%emt 0:01:04]} Qxd6 {[%emt 0:00:04]} 12. Nd2 {[%emt 0:00:01]} h5 {[%emt 0:00:
03]} 13. Nc4 {[%emt 0:00:14]} Qc7 {[%emt 0:00:32]} 14. Be3 {[%emt 0:03:45]} b5
{[%emt 0:03:01]} 15. Nd2 {[%emt 0:00:04]} Ng6 {[%emt 0:01:43]} 16. Bxc5 {
[%emt 0:03:04]} g4 {[%emt 0:00:04]} 17. h4 {[%emt 0:00:27]} Nxh4 {[%emt 0:00:
09]} 18. d4 {[%emt 0:00:17]} Ng6 {[%emt 0:02:19]} 19. dxe5 {[%emt 0:01:22]}
Nxe5 {[%emt 0:01:44]} 20. Nb3 {[%emt 0:01:43]} Qg7 {[%emt 0:02:05]} 21. Bd6 {
[%emt 0:01:31]} h4 {[%emt 0:03:41]} 22. Bxe5 {[%emt 0:00:03]} fxe5 {[%emt 0:00:
01]} 23. Qd6 {[%emt 0:00:17]} h3 {[%emt 0:00:49]} 24. g3 {[%emt 0:00:35]} h2+ {
[%emt 0:00:08]} 25. Kg2 {[%emt 0:00:47]} Bd7 {[%emt 0:01:00]} 26. Nc5 {[%emt 0:
00:25]} Rd8 {[%emt 0:00:45]} 27. Nd3 {[%emt 0:00:38]} Qh7 {[%emt 0:00:18]} 28.
Qxe5+ {[%emt 0:00:06]} Kf8 {[%emt 0:00:02]} 29. Qf6+ {[%emt 0:00:04]} Ke8 {
[%emt 0:00:03]} 30. Nf4 {[%emt 0:00:20]} Qxe4+ {[%emt 0:00:05]} 31. f3 {
[%emt 0:00:04]} gxf3+ {[%emt 0:00:02]} 32. Kf2 {[%emt 0:00:53]} Qxc2+ {[%emt 0:
00:13]} 33. Kxf3 {[%emt 0:00:24]} Bg4+ {[%emt 0:00:35]} 34. Kxg4 {[%emt 0:00:
00]} Rg8+ {[%emt 0:00:03]} 35. Kh4 {[%emt 0:00:04]} Qh7+ {[%emt 0:00:05]} 36.
Nh5 {[%emt 0:00:01]} h1=Q+ {[%emt 0:00:19]} 37. Rxh1 {[%emt 0:00:08]} Qe4+ {
[%emt 0:00:02]} 38. Qf4 {[%emt 0:00:08]} Qe7+ {[%emt 0:00:11]} 39. Nf6+ {
[%emt 0:00:13]} Kf7 {[%emt 0:00:05]} 40. Rhf1 {[%emt 0:00:39]} Rh8+ {[%emt 0:
00:12]} 41. Kg4 {[%emt 0:00:00]} Qe6+ {[%emt 0:00:04]} 42. Kf3 {[%emt 0:00:18]}
Rd3+ {[%emt 0:00:01]} 43. Kg2 {[%emt 0:00:05]} Qh3+ {[%emt 0:00:04]} 44. Kf2 {
[%emt 0:00:09]} Qh2+ {[%emt 0:00:18]} 45. Ke1 {[%emt 0:00:00]} Qxb2 {[%emt 0:
00:29]} 46. Ne4+ {[%emt 0:00:27]} Ke8 {[%emt 0:00:08]} 47. Qb8+ {[%emt 0:00:21]
} Ke7 {[%emt 0:00:04]} 48. Qa7+ {[%emt 0:00:08]} Rd7 {[%emt 0:00:09]} 49. Qc5+
{[%emt 0:00:01]} Kd8 {[%emt 0:00:09]} 50. Qc3 {[%emt 0:00:20]} Qxc3+ {[%emt 0:
00:28]} 51. Nxc3 {[%emt 0:00:01]} Re8+ {[%emt 0:00:01]} 52. Ne2 {[%emt 0:00:05]
} Rde7 {[%emt 0:00:08]} 53. Rf2 {[%emt 0:00:01]} Rh8 {[%emt 0:00:01]} 54. axb5
{[%emt 0:00:11]} Rh1+ {[%emt 0:00:03]} 55. Rf1 {[%emt 0:00:00]} Rh2 {[%emt 0:
00:01]} 56. Rd1+ {[%emt 0:00:34]} Kc7 {[%emt 0:00:03]} 57. b6+ {[%emt 0:00:02]}
Kxb6 {[%emt 0:00:04]} 58. Rd2 {[%emt 0:00:01]} a5 {[%emt 0:00:04]} 59. Kd1 {
[%emt 0:00:06]} a4 {[%emt 0:00:03]} 60. Nc3 {[%emt 0:00:11]} Rxd2+ {[%emt 0:00:
09]} 61. Kxd2 {[%emt 0:00:00]} a3 {[%emt 0:00:06]} 62. Ra1 {[%emt 0:00:05]} Rg7
{[%emt 0:00:04]} 63. Ne2 {[%emt 0:00:04]} Rd7+ {[%emt 0:00:03]} 64. Kc2 {
[%emt 0:00:24]} Re7 {[%emt 0:00:03]} 65. Nc3 {[%emt 0:00:18]} Rg7 {[%emt 0:00:
05]} 66. Rxa3 {[%emt 0:00:03]} Kc5 {[%emt 0:00:04]} 67. Ne4+ {[%emt 0:00:08]}
Kd5 {[%emt 0:00:06]} 68. Kd3 {[%emt 0:00:02]} Rf7 {[%emt 0:00:20]} 69. Ra5+ {
[%emt 0:00:02]} c5 {[%emt 0:00:06]} 70. Rxc5+ {[%emt 0:00:01]} Ke6 {[%emt 0:00:
04]} 71. Ng5+ {[%emt 0:00:02]} 1-0